bitfinex/quotes_SOLUSD_20250802
["timestamp","ask_amount","ask_price","bid_price","bid_amount"]
[1754176546299,9.50597286,158.63,158.58,55.21597286]
[1754176546480,9.50597286,158.62,158.57,8.79597286]
[1754176546874,0.71,158.61,158.56,9.49597286]
[1754176547208,0.71,158.61,158.56,8.79597286]
[1754176547375,42.78468397,158.64,158.57,0.7]
[1754176547709,0.03,158.65,158.63,8.79597286]
[1754176547871,0.03,158.65,158.64,9.4263309]
[1754176548071,0.03,158.65,158.64,10.1263309]
[1754176548298,0.03,158.65,158.63,8.79597286]
[1754176548503,0.03,158.65,158.64,34.79597286]
[1754176548703,0.03,158.65,158.64,35.49597286]
[1754176549569,0.03,158.65,158.64,34.79597286]
[1754176550177,0.03,158.65,158.64,35.49597286]
[1754176550401,0.03,158.65,158.64,34.79597286]
[1754176551507,0.03,158.65,158.64,26.0]
[1754176551709,0.03,158.65,158.64,35.49597286]
[1754176552809,0.03,158.65,158.64,8.79597286]
[1754176553194,0.03,158.65,158.64,10.1263309]
[1754176553710,0.03,158.65,158.64,36.1263309]
[1754176554490,0.03,158.65,158.64,40.81150391]
[1754176554698,0.03,158.65,158.64,36.1263309]
[1754176555291,0.03,158.65,158.64,10.1263309]
[1754176555512,0.03,158.65,158.64,14.80998406]
[1754176556092,0.03,158.67,158.66,34.79597286]
[1754176556387,0.03,158.68,158.66,59.9699046]
[1754176556608,0.03,158.68,158.67,14.17962602]
[1754176557907,0.03,158.68,158.67,60.07962602]
[1754176558108,0.03,158.68,158.67,60.05962602]
[1754176558478,0.03,158.7,158.69,26.0]
[1754176558684,8.79597286,158.83,158.73,26.0]
[1754176558882,0.71,158.82,158.78,8.79597286]
[1754176559210,0.71,158.8,158.77,8.79597286]
[1754176560119,0.71,158.83,158.79,8.79597286]
[1754176561295,0.2,158.84,158.8,1.28972292]
[1754176561498,0.2,158.84,158.79,0.66]
[1754176561728,0.2,158.84,158.8,8.79597286]
[1754176561901,0.2,158.84,158.8,10.08569578]
[1754176562216,0.2,158.84,158.8,8.79597286]
[1754176562401,0.2,158.84,158.8,10.08569578]
[1754176562606,0.2,158.84,158.8,9.45597286]
[1754176563197,0.2,158.84,158.8,10.08569578]
[1754176565200,0.2,158.84,158.8,18.07440689]
[1754176565402,0.2,158.84,158.8,26.87037975]
[1754176565591,0.2,158.84,158.82,26.0]
[1754176565792,0.2,158.84,158.83,55.74557683]
[1754176566005,0.2,158.84,158.83,56.40557683]
[1754176566800,0.2,158.84,158.83,58.92931583]
[1754176568921,0.2,158.84,158.83,12.60931583]
[1754176569128,0.2,158.84,158.83,83.55971186]
[1754176569419,0.2,158.84,158.83,84.21971186]
[1754176571023,0.2,158.84,158.83,28.523739]
[1754176571217,0.86,158.84,158.83,46.26]
[1754176571806,9.65597286,158.84,158.81,55.055973]
[1754176572107,0.66,158.83,158.81,63.85194586]
[1754176572312,0.2,158.84,158.82,8.79597286]
[1754176572530,0.2,158.84,158.83,8.79597286]
[1754176573253,0.2,158.84,158.82,8.79597286]
[1754176573540,0.2,158.84,158.83,35.42557683]
[1754176574611,0.2,158.84,158.82,8.79597286]
[1754176574804,0.66,158.83,158.81,72.26]
[1754176575004,0.66,158.83,158.81,46.26]
[1754176575238,0.66,158.82,158.81,46.26]
[1754176578212,9.65597286,158.84,158.81,46.26]
[1754176578412,0.66,158.83,158.81,46.26]
[1754176579924,9.45597286,158.82,158.77,26.0]
[1754176580133,9.45597286,158.82,158.76,8.79597286]
[1754176580134,8.79597286,158.8,158.75,8.79597286]
[1754176580320,9.45597286,158.79,158.76,46.2]
[1754176580521,0.66,158.78,158.76,46.2]
[1754176582124,0.66,158.77,158.76,46.2]
[1754176582333,9.45597286,158.77,158.69,8.85597286]
[1754176582639,8.79597286,158.73,158.7,46.16]
[1754176582844,8.79597286,158.71,158.7,46.16]
[1754176583016,8.79597286,158.71,158.69,0.06]
[1754176583218,9.45597286,158.71,158.69,0.06]
[1754176584556,8.79597286,158.74,158.7,0.66]
[1754176584770,9.45597286,158.74,158.69,0.06]
[1754176585446,0.66,158.73,158.69,0.06]
[1754176585835,9.45597286,158.73,158.69,0.06]
[1754176586038,9.45597286,158.72,158.69,0.06]
[1754176586238,8.79597286,158.71,158.69,0.06]
[1754176586443,8.79597286,158.7,158.69,0.06]
[1754176586648,9.45597286,158.7,158.69,0.06]
[1754176587043,26.24065683,158.7,158.69,0.06]
[1754176590378,16.78468397,158.7,158.69,0.06]
[1754176590684,8.79597286,158.7,158.69,0.06]
[1754176590886,9.45597286,158.7,158.69,0.06]
[1754176592030,0.66,158.7,158.69,0.06]
[1754176592236,8.79597286,158.7,158.69,0.06]
[1754176592489,9.47597286,158.7,158.69,0.06]
[1754176592773,52.26065683,158.7,158.69,0.06]
[1754176593066,43.46468397,158.7,158.69,0.06]
[1754176593275,51.58065683,158.7,158.69,0.06]
[1754176593560,42.78468397,158.7,158.69,0.06]
[1754176593731,25.58065683,158.7,158.69,0.06]
[1754176595236,8.79597286,158.72,158.69,0.06]
[1754176595435,25.58065683,158.73,158.69,0.77]
[1754176596252,25.58065683,158.73,158.7,0.71]
[1754176596459,8.79597286,158.71,158.69,0.06]
[1754176596640,17.46468397,158.7,158.69,0.06]
[1754176596959,26.26065683,158.7,158.69,0.06]
[1754176597543,25.58065683,158.7,158.69,0.06]
[1754176599595,8.79597286,158.71,158.69,0.06]
[1754176599773,8.79597286,158.72,158.69,0.06]
[1754176599956,8.79597286,158.71,158.69,0.06]
[1754176601538,16.78468397,158.75,158.7,0.71]
[1754176601742,8.79597286,158.73,158.69,0.06]
[1754176602142,8.79597286,158.73,158.69,0.77]
[1754176602467,8.79597286,158.74,158.7,0.71]
[1754176602668,25.58065683,158.75,158.7,8.79597286]
[1754176602846,25.58065683,158.75,158.71,0.71]
[1754176603654,8.79597286,158.72,158.69,0.06]
[1754176603853,25.58065683,158.7,158.69,0.06]
[1754176604164,51.58065683,158.7,158.69,0.06]
[1754176604364,52.26065683,158.7,158.69,0.06]
[1754176606466,52.26065683,158.7,158.68,0.06]
[1754176606671,16.78468397,158.65,158.58,0.71]
[1754176606868,8.79597286,158.63,158.58,0.71]
[1754176607088,8.79597286,158.63,158.58,14.17243954]
[1754176607267,8.79597286,158.64,158.58,8.79597286]
[1754176607476,8.79597286,158.64,158.59,0.71]
[1754176607784,8.79597286,158.64,158.6,0.71]
[1754176608286,8.79597286,158.62,158.58,0.71]
[1754176608462,8.79597286,158.61,158.57,4.66451606]
[1754176608651,8.79597286,158.61,158.57,0.71]
[1754176609084,8.79597286,158.61,158.58,0.71]
[1754176609388,8.79597286,158.62,158.59,0.71]
[1754176610582,8.79597286,158.63,158.54,26.83075564]
[1754176610795,26.0,158.66,158.6,9.50597286]
[1754176611090,8.79597286,158.66,158.61,9.50597286]
[1754176611267,8.79597286,158.66,158.62,0.71]
[1754176611467,8.79597286,158.66,158.63,0.71]
[1754176611982,9.47597286,158.66,158.61,0.71]
[1754176612764,8.79597286,158.66,158.62,0.71]
[1754176613480,46.14,158.67,158.62,0.71]
[1754176613787,8.79597286,158.66,158.62,0.71]
[1754176614495,0.68,158.65,158.6,8.79597286]
[1754176614667,0.68,158.65,158.6,9.50597286]
[1754176614864,25.58065683,158.65,158.59,8.79597286]
[1754176615062,8.79597286,158.64,158.59,0.71]
[1754176615370,8.79597286,158.62,158.59,4.670421]
[1754176615570,9.47597286,158.62,158.57,9.50597286]
[1754176615778,8.79597286,158.62,158.58,5.38135883]
[1754176616206,0.68,158.64,158.59,0.71]
[1754176616207,8.79597286,158.63,158.59,0.71]
[1754176616384,9.47597286,158.63,158.59,0.71]
[1754176616802,8.79597286,158.62,158.57,8.79597286]
[1754176616998,9.47597286,158.63,158.59,0.71]
[1754176617206,8.79597286,158.63,158.59,0.71]
[1754176617416,8.79597286,158.64,158.6,0.71]
[1754176617703,8.79597286,158.66,158.61,8.79597286]
[1754176617907,8.79597286,158.66,158.62,0.71]
[1754176618275,9.47597286,158.66,158.62,0.71]
[1754176618491,9.47597286,158.66,158.6,9.50597286]
[1754176618695,8.79597286,158.63,158.58,0.71]
[1754176618890,8.79597286,158.63,158.58,8.79597286]
[1754176619105,8.79597286,158.63,158.59,0.71]
[1754176619899,9.47597286,158.63,158.59,0.71]
[1754176620069,63.60468397,158.67,158.6,0.71]
[1754176620268,8.79597286,158.65,158.6,0.71]
[1754176620501,8.79597286,158.65,158.61,0.71]
[1754176620872,9.47597286,158.64,158.59,0.71]
[1754176621090,8.79597286,158.65,158.6,0.7]
[1754176621291,8.79597286,158.65,158.61,0.7]
[1754176621686,9.50597286,158.65,158.61,0.7]
[1754176621998,8.79597286,158.63,158.58,8.85597286]
[1754176622199,0.71,158.62,158.58,0.06]
[1754176622402,25.58065683,158.59,158.58,0.06]
[1754176622607,26.29065683,158.59,158.58,0.06]
[1754176623607,16.78468397,158.57,158.56,0.06]
[1754176623788,29.80869131,158.57,158.56,0.06]
[1754176623977,29.80869131,158.57,158.54,0.2]
[1754176623978,30.51869131,158.57,158.54,0.2]
[1754176624306,25.58065683,158.55,158.54,0.2]
[1754176624618,71.54065683,158.55,158.54,0.2]
[1754176624808,72.25065683,158.55,158.54,0.2]
[1754176625321,9.50597286,158.55,158.54,0.2]
[1754176625980,8.79597286,158.55,158.54,0.2]
[1754176626402,9.50597286,158.55,158.54,0.2]
[1754176626706,8.79597286,158.55,158.54,0.2]
[1754176627415,9.50597286,158.55,158.54,0.2]
[1754176627994,8.79597286,158.55,158.54,0.2]
[1754176628286,9.50597286,158.55,158.54,0.2]
[1754176630112,16.78468397,158.56,158.54,0.2]
[1754176630285,45.94,158.58,158.54,0.9]
[1754176630485,25.58065683,158.57,158.54,0.9]
[1754176631078,16.78468397,158.57,158.54,0.9]
[1754176631497,3.99996643,158.62,158.55,0.7]
[1754176631812,8.79597286,158.57,158.54,0.2]
[1754176632108,8.79597286,158.58,158.54,0.9]
[1754176632718,8.79597286,158.58,158.54,0.2]
[1754176632891,8.79597286,158.58,158.55,0.7]
[1754176633213,25.58065683,158.63,158.57,8.79597286]
[1754176633421,8.79597286,158.62,158.56,9.49597286]
[1754176633610,8.79597286,158.6,158.54,0.9]
[1754176633814,17.49468397,158.61,158.54,0.9]
[1754176634011,8.79597286,158.57,158.54,0.2]
[1754176634218,16.78468397,158.58,158.54,0.2]
[1754176634724,16.78468397,158.58,158.55,0.7]
[1754176634897,72.29065683,158.61,158.56,0.7]
[1754176635098,16.78468397,158.6,158.57,0.7]
[1754176635302,8.79597286,158.59,158.55,0.7]
[1754176635604,9.50597286,158.59,158.54,0.2]
[1754176635823,9.50597286,158.59,158.55,0.7]
[1754176636009,8.79597286,158.59,158.55,0.7]
[1754176636722,8.79597286,158.58,158.54,0.2]
[1754176636914,8.79597286,158.56,158.54,0.2]
[1754176637222,9.50597286,158.57,158.54,0.2]
[1754176637420,8.79597286,158.57,158.54,0.2]
[1754176637830,9.50597286,158.57,158.54,0.2]
[1754176639210,8.79597286,158.57,158.54,0.2]
[1754176639417,8.79597286,158.58,158.54,0.9]
[1754176639664,8.79597286,158.55,158.54,0.2]
[1754176640017,25.58065683,158.55,158.54,0.2]
[1754176640214,26.29065683,158.55,158.54,0.2]
[1754176640951,52.29065683,158.55,158.54,0.2]
[1754176642825,43.49468397,158.55,158.54,0.2]
[1754176643158,52.29065683,158.55,158.54,0.2]
[1754176643850,16.78468397,158.54,158.53,0.06]
[1754176644151,72.35065683,158.54,158.52,0.06]
[1754176644352,52.29065683,158.53,158.52,0.06]
[1754176645240,25.58065683,158.53,158.52,0.06]
[1754176645533,26.29065683,158.53,158.52,0.06]
[1754176648635,26.29065683,158.53,158.5,0.06]
[1754176648636,42.78468397,158.51,158.5,0.06]
[1754176648846,97.62065683,158.51,158.5,0.06]
[1754176649036,98.33065683,158.51,158.5,0.06]
[1754176649738,16.78468397,158.51,158.5,0.06]
[1754176649941,16.78468397,158.51,158.5,0.76]
[1754176650141,25.58065683,158.51,158.5,0.76]
[1754176650348,16.78468397,158.51,158.5,0.76]
[1754176650553,25.58065683,158.51,158.5,0.76]
[1754176650856,25.58065683,158.51,158.5,0.06]
[1754176651243,16.78468397,158.51,158.5,0.06]
[1754176651563,25.58065683,158.51,158.5,0.06]
[1754176652967,16.78468397,158.51,158.5,0.74]
[1754176653139,16.78468397,158.56,158.5,0.74]
[1754176653336,16.78468397,158.56,158.51,8.79597286]
[1754176653539,8.79597286,158.57,158.52,0.68]
[1754176654057,16.78468397,158.56,158.52,0.68]
[1754176654966,0.03,158.59,158.55,8.79597286]
[1754176655140,0.03,158.59,158.52,26.68]
[1754176655141,0.03,158.59,158.56,9.47597286]
[1754176655556,0.03,158.59,158.57,0.68]
[1754176656051,0.03,158.59,158.56,8.79597286]
[1754176656358,0.03,158.59,158.58,0.68]
[1754176658559,8.82597286,158.59,158.5,26.69091482]
[1754176658763,8.82597286,158.59,158.55,0.68]
[1754176659172,0.03,158.59,158.56,0.68]
[1754176659959,8.79597286,158.57,158.53,0.68]
[1754176660264,8.79597286,158.57,158.54,0.68]
[1754176661061,25.58065683,158.56,158.52,0.68]
[1754176661452,8.79597286,158.55,158.52,0.68]
[1754176661761,16.78468397,158.56,158.53,0.68]
[1754176662079,8.82597286,158.59,158.54,0.68]
[1754176662243,16.78468397,158.58,158.53,8.79597286]
[1754176662442,16.78468397,158.58,158.55,0.68]
[1754176662995,25.58065683,158.58,158.55,0.68]
[1754176663270,8.79597286,158.56,158.52,0.68]
[1754176663579,25.58065683,158.56,158.52,0.68]
[1754176663748,8.79597286,158.54,158.5,0.06]
[1754176663946,8.79597286,158.53,158.5,0.06]
[1754176664164,8.79597286,158.54,158.5,0.06]
[1754176664368,8.79597286,158.54,158.5,0.74]
[1754176665859,25.58065683,158.53,158.5,0.06]
[1754176666062,26.30065683,158.53,158.5,0.06]
[1754176666368,25.58065683,158.51,158.5,0.06]
[1754176666674,8.79597286,158.52,158.5,0.06]
[1754176666871,8.79597286,158.51,158.5,0.06]
[1754176667081,25.58065683,158.51,158.5,0.06]
[1754176668193,0.72,158.52,158.5,0.06]
[1754176668194,8.79597286,158.52,158.5,0.06]
[1754176668347,16.78468397,158.53,158.5,0.74]
[1754176668547,25.58065683,158.53,158.5,0.74]
[1754176672659,16.78468397,158.55,158.51,0.68]
[1754176672870,16.78468397,158.55,158.52,0.68]
[1754176673173,25.58065683,158.55,158.52,0.68]
[1754176674281,8.79597286,158.53,158.5,0.06]
[1754176674449,8.79597286,158.51,158.5,0.06]
[1754176674776,25.58065683,158.51,158.5,0.06]
[1754176674981,26.30065683,158.51,158.5,0.06]
[1754176675881,16.78468397,158.5,158.49,0.06]
[1754176676063,25.58065683,158.49,158.48,0.06]
[1754176676264,30.52904699,158.49,158.48,0.06]
[1754176676465,16.78468397,158.48,158.4,0.06]
[1754176676662,25.58065683,158.43,158.4,0.06]
[1754176677190,26.30065683,158.43,158.4,0.06]
[1754176677381,17.50468397,158.43,158.4,0.06]
[1754176677678,52.30065683,158.43,158.4,0.06]
[1754176677863,42.78468397,158.41,158.4,0.06]
[1754176678060,42.78468397,158.41,158.36,0.1]
[1754176678061,16.78468397,158.4,158.36,0.1]
[1754176678268,25.58065683,158.37,158.36,0.1]
[1754176678679,26.15065683,158.37,158.36,0.1]
[1754176680181,25.58065683,158.37,158.36,0.1]
[1754176680584,25.58065683,158.38,158.36,0.78]
[1754176680987,8.79597286,158.37,158.36,0.1]
[1754176681396,16.78468397,158.38,158.36,0.82]
[1754176681701,25.58065683,158.38,158.36,0.1]
[1754176682073,8.79597286,158.37,158.36,0.1]
[1754176682596,25.58065683,158.37,158.36,0.1]
[1754176682814,26.15065683,158.37,158.36,0.1]
[1754176683475,51.58065683,158.35,158.34,0.1]
[1754176683772,97.68065683,158.35,158.34,0.1]
[1754176683975,98.15065683,158.35,158.34,0.1]
[1754176684502,72.15065683,158.35,158.34,0.1]
[1754176684681,42.78468397,158.31,158.26,0.72]
[1754176684994,8.79597286,158.27,158.26,0.72]
[1754176685385,8.79597286,158.27,158.25,1.2347325]
[1754176685588,8.79597286,158.26,158.25,1.2347325]
[1754176685772,42.78468397,158.29,158.25,1.2347325]
[1754176685974,42.78468397,158.29,158.25,1.9547325]
[1754176686178,8.79597286,158.28,158.25,1.2347325]
[1754176686494,16.78468397,158.28,158.26,0.72]
[1754176686804,16.78468397,158.31,158.27,0.72]
[1754176686974,8.79597286,158.32,158.27,9.51597286]
[1754176687175,0.03,158.37,158.25,1.2347325]
[1754176687176,0.03,158.37,158.28,0.72]
[1754176687377,25.58065683,158.33,158.28,9.51597286]
[1754176687596,8.79597286,158.3,158.28,0.72]
[1754176687905,8.79597286,158.29,158.26,0.72]
[1754176688202,16.78468397,158.32,158.28,8.79597286]
[1754176688385,16.78468397,158.32,158.29,0.72]
[1754176688802,16.78468397,158.32,158.3,0.72]
[1754176689307,16.78468397,158.32,158.28,8.79597286]
[1754176689514,16.78468397,158.35,158.31,9.51597286]
[1754176689682,8.79597286,158.35,158.32,0.72]
[1754176690104,8.79597286,158.35,158.25,1.2347325]
[1754176690105,8.79597286,158.33,158.29,0.72]
[1754176690313,8.79597286,158.35,158.3,8.79597286]
[1754176690514,8.79597286,158.35,158.31,0.72]
[1754176690680,8.79597286,158.35,158.32,0.72]
[1754176691013,8.79597286,158.35,158.3,8.79597286]
[1754176691014,8.79597286,158.33,158.29,0.72]
[1754176691421,17.25468397,158.35,158.29,0.72]
[1754176691725,8.79597286,158.33,158.29,0.72]
[1754176692923,16.78468397,158.35,158.32,8.79597286]
[1754176693131,46.16,158.36,158.33,0.72]
[1754176693304,16.78468397,158.36,158.34,0.72]
[1754176693482,8.82597286,158.37,158.32,8.79597286]
[1754176693681,8.82597286,158.37,158.35,0.72]
[1754176693883,8.79597286,158.36,158.32,0.72]
[1754176694083,16.78468397,158.34,158.29,8.79597286]
[1754176694280,16.78468397,158.34,158.29,0.72]
[1754176694281,8.79597286,158.34,158.29,0.72]
[1754176694485,8.79597286,158.34,158.3,0.72]
[1754176694732,16.78468397,158.35,158.31,0.72]
[1754176694921,16.78468397,158.35,158.3,0.72]
[1754176695495,0.47,158.34,158.25,27.2347325]
[1754176695714,62.94468397,158.35,158.28,8.79597286]
[1754176695908,62.94468397,158.35,158.29,8.79597286]
[1754176696441,62.94468397,158.35,158.28,0.72]
[1754176696720,8.79597286,158.31,158.27,0.72]
[1754176698091,25.58065683,158.32,158.27,0.72]
[1754176698296,8.79597286,158.32,158.27,9.51597286]
[1754176698808,8.79597286,158.31,158.27,0.72]
[1754176699813,9.26597286,158.32,158.27,0.72]
[1754176700697,8.79597286,158.31,158.27,0.72]
[1754176701103,8.79597286,158.28,158.25,1.2347325]
[1754176701708,16.78468397,158.3,158.25,10.03070536]
[1754176701903,16.78468397,158.28,158.25,1.2347325]
[1754176702128,25.58065683,158.28,158.25,1.2347325]
[1754176703029,0.47,158.34,158.27,8.79597286]
[1754176703341,0.47,158.34,158.25,1.2347325]
[1754176703342,16.78468397,158.33,158.28,9.51597286]
[1754176703513,16.78468397,158.33,158.29,0.72]
[1754176703712,25.58065683,158.33,158.29,0.72]
[1754176704118,25.58065683,158.34,158.3,0.72]
[1754176704427,16.78468397,158.34,158.31,0.72]
[1754176705332,16.78468397,158.34,158.3,8.79597286]
[1754176705509,26.0,158.35,158.32,0.72]
[1754176706235,34.79597286,158.35,158.3,9.51597286]
[1754176706404,25.58065683,158.34,158.3,0.72]
[1754176706806,8.79597286,158.32,158.26,8.79597286]
[1754176707023,8.79597286,158.32,158.27,8.79597286]
[1754176707215,9.26597286,158.33,158.28,9.51597286]
[1754176707415,9.26597286,158.33,158.27,8.79597286]
[1754176707735,9.26597286,158.33,158.27,8.85597286]
[1754176708037,9.26597286,158.33,158.27,0.06]
[1754176708240,9.26597286,158.33,158.27,8.85597286]
[1754176708625,8.79597286,158.33,158.28,8.79597286]
[1754176709157,8.79597286,158.33,158.28,9.51597286]
[1754176709449,8.79597286,158.33,158.28,8.79597286]
[1754176709762,8.79597286,158.33,158.29,0.72]
[1754176710145,16.81468397,158.34,158.29,0.72]
[1754176710307,0.03,158.34,158.31,8.79597286]
[1754176710505,0.03,158.34,158.28,26.0]
[1754176710722,0.03,158.34,158.29,9.51597286]
[1754176710926,0.03,158.34,158.29,8.79597286]
[1754176711143,0.03,158.34,158.3,0.67]
[1754176712413,0.03,158.34,158.27,0.06]
[1754176712414,8.79597286,158.32,158.27,0.73]
[1754176712737,16.78468397,158.32,158.28,9.46597286]
[1754176712920,16.78468397,158.32,158.28,8.79597286]
[1754176713113,16.78468397,158.32,158.29,0.67]
[1754176713516,0.03,158.37,158.3,0.63171193]
[1754176713735,0.03,158.37,158.36,8.79597286]
[1754176713945,0.03,158.37,158.32,26.0]
[1754176713946,0.03,158.37,158.32,35.46597286]
[1754176714150,0.74,158.37,158.32,35.46597286]
[1754176714814,0.03,158.37,158.33,8.79597286]
[1754176715038,0.03,158.37,158.33,9.46597286]
[1754176715727,26.29065683,158.36,158.32,4.179704]
[1754176715933,0.71,158.35,158.32,4.179704]
[1754176716458,0.71,158.35,158.31,17.59194586]
[1754176717357,0.71,158.35,158.31,8.795973]
[1754176717660,0.71,158.35,158.3,9.46597286]
[1754176717839,0.71,158.35,158.31,8.79597286]
[1754176718442,0.71,158.35,158.3,0.67]
[1754176718758,17.52468397,158.37,158.32,8.79597286]
[1754176718945,16.81468397,158.37,158.32,8.79597286]
[1754176719261,0.71,158.36,158.32,8.79597286]
[1754176719556,0.71,158.35,158.31,8.79597286]
[1754176719929,26.32065683,158.37,158.31,9.46597286]
[1754176720145,0.03,158.37,158.35,8.79597286]
[1754176720753,0.03,158.37,158.33,0.67]
[1754176720929,0.03,158.37,158.34,0.67]
[1754176721127,4.24577365,158.37,158.36,8.79597286]
[1754176721330,0.03,158.37,158.36,8.79597286]
[1754176721571,0.03,158.37,158.36,9.46597286]
[1754176722302,0.03,158.37,158.36,10.09744545]
[1754176722932,0.03,158.37,158.36,9.46597286]
[1754176724158,0.03,158.37,158.36,14.39217786]
[1754176725146,0.03,158.37,158.36,30.926205]
[1754176725468,0.03,158.37,158.36,39.72217786]
[1754176725874,0.03,158.37,158.33,0.67]
[1754176726079,0.71,158.36,158.31,147.97]
[1754176726279,0.71,158.36,158.33,8.79597286]
[1754176727461,0.71,158.36,158.32,8.79597286]
[1754176727664,0.71,158.36,158.33,8.79597286]
[1754176728202,0.03,158.37,158.31,55.615973]
[1754176728341,0.03,158.37,158.32,8.79597286]
[1754176728675,0.74,158.37,158.33,8.79597286]
[1754176728880,0.71,158.36,158.27,0.06]
[1754176729163,16.78468397,158.35,158.31,8.79597286]
[1754176729342,0.71,158.34,158.31,8.79597286]
[1754176729962,0.71,158.34,158.29,8.795973]
[1754176730163,0.71,158.33,158.29,8.795973]
[1754176730336,0.71,158.34,158.29,0.67]
[1754176730536,0.71,158.34,158.3,8.79597286]
[1754176730853,26.03,158.37,158.31,0.67]
[1754176731161,0.03,158.37,158.36,8.79597286]
[1754176731735,0.03,158.37,158.36,9.46597286]
[1754176732841,26.0,158.35,158.27,0.06]
[1754176733162,8.79597286,158.31,158.27,0.06]
[1754176733339,16.78468397,158.31,158.27,0.06]
[1754176733537,26.0,158.34,158.29,8.79597286]
[1754176733766,0.71,158.34,158.3,8.79597286]
[1754176733964,17.49468397,158.36,158.32,8.79597286]
[1754176734164,0.03,158.37,158.34,8.79597286]
[1754176734539,0.03,158.37,158.36,8.79597286]
[1754176734743,0.03,158.37,158.36,9.46597286]
[1754176735944,0.03,158.38,158.36,9.46597286]
[1754176736144,0.03,158.38,158.37,26.0]
[1754176736752,0.03,158.38,158.37,9.46597286]
[1754176736949,0.03,158.38,158.37,35.46597286]
[1754176739867,0.03,158.38,158.37,26.67]
[1754176740048,0.03,158.38,158.37,34.79597286]
[1754176740253,0.74,158.38,158.35,47.42]
[1754176740463,0.74,158.38,158.36,8.79597286]
[1754176740755,0.03,158.38,158.37,8.79597286]
[1754176740955,0.03,158.38,158.36,56.15597286]
[1754176741486,0.03,158.38,158.37,8.79597286]
[1754176742589,0.69,158.38,158.37,2.531726]
[1754176742786,0.69,158.38,158.34,47.34]
[1754176742996,0.03,158.38,158.34,47.34]
[1754176743155,0.66,158.37,158.34,47.34]
[1754176743590,0.66,158.37,158.34,49.872206]
[1754176743762,0.03,158.38,158.35,8.79597286]
[1754176744080,0.03,158.38,158.34,59.37817886]
[1754176744285,9.45597286,158.37,158.34,49.872206]
[1754176744456,8.79597286,158.37,158.34,2.532206]
[1754176744659,8.79597286,158.35,158.34,2.532206]
[1754176744893,9.45597286,158.35,158.31,47.3]
[1754176745084,0.66,158.34,158.31,47.3]
[1754176745288,0.66,158.33,158.31,47.3]
[1754176747489,0.66,158.33,158.31,56.09597286]
[1754176748071,8.79597286,158.35,158.31,47.3]
[1754176748277,0.66,158.32,158.31,47.3]
[1754176749170,0.66,158.34,158.31,47.3]
[1754176749358,0.66,158.33,158.31,47.3]
[1754176749766,0.69,158.38,158.32,8.79597286]
[1754176749989,0.03,158.38,158.36,8.79597286]
[1754176750182,0.03,158.38,158.37,8.79597286]
[1754176751062,0.03,158.38,158.35,47.18]
[1754176751282,0.69,158.38,158.35,55.97597286]
[1754176751595,0.69,158.38,158.36,8.79597286]
[1754176751596,0.03,158.38,158.36,8.79597286]
[1754176751798,0.03,158.38,158.37,8.79597286]
[1754176751975,0.03,158.38,158.36,0.77]
[1754176752186,0.03,158.38,158.37,8.79597286]
[1754176752472,0.03,158.38,158.36,0.06]
[1754176752688,9.45597286,158.37,158.36,0.06]
[1754176752984,0.03,158.38,158.36,8.85597286]
[1754176753183,0.03,158.38,158.37,8.79597286]
[1754176753389,0.03,158.38,158.36,8.85597286]
[1754176754315,0.03,158.38,158.37,8.79597286]
[1754176754793,0.03,158.38,158.36,8.85597286]
[1754176754981,0.03,158.38,158.36,11.38785886]
[1754176755183,0.03,158.38,158.36,2.591886]